{"text_format":"3","workbook":"xlsx","n_sheets":3,"sheets":["Επικύρωση αποθέματος","Επικύρωση περιουσ. στοιχείων","Επικύρωση παθητικού"],"not_rendered":{"defined_names":1},"read":"whole","date_system":"1900"}

{"sheet":"Επικύρωση αποθέματος","index":0,"n_rows":45,"n_cols":35,"rows_kept":45,"merged":[[0,1,0,30],[0,31,0,39],[1,1,5,39],[6,1,6,6],[6,7,6,39],[7,1,7,6],[7,7,7,39],[9,1,9,6],[9,7,9,39],[10,1,10,6],[10,7,10,39],[11,1,11,6],[11,7,11,20],[11,21,11,26],[11,27,11,30],[11,31,11,33],[11,34,11,39],[12,1,12,6],[12,7,12,20],[12,21,12,26],[13,1,13,6],[13,7,13,20],[13,21,13,26],[14,1,14,6],[14,7,14,20],[14,21,14,26],[15,1,15,6],[17,1,17,39],[18,1,18,6],[18,7,18,12],[18,13,18,15],[18,16,18,18],[18,19,18,26],[18,27,18,31],[18,32,18,39],[19,1,19,6],[19,7,19,12],[19,13,19,15],[19,16,19,18],[19,19,19,26],[19,27,19,31],[19,32,19,39],[20,1,20,6],[20,7,20,12],[20,13,20,15],[20,16,20,18],[20,19,20,26],[20,27,20,31],[20,32,20,39],[21,1,21,6],[21,7,21,12],[21,13,21,15],[21,16,21,18],[21,19,21,26],[21,27,21,31],[21,32,21,39],[22,1,22,6],[22,7,22,12],[22,13,22,15],[22,16,22,18],[22,19,22,26],[22,27,22,31],[22,32,22,39],[23,1,23,6],[23,7,23,12],[23,13,23,15],[23,16,23,18],[23,19,23,26],[23,27,23,31],[23,32,23,39],[25,1,25,39],[26,1,26,6],[26,7,26,12],[26,13,26,18],[26,19,26,26],[26,27,26,31],[26,32,26,39],[27,1,27,6],[27,7,27,12],[27,13,27,18],[27,19,27,26],[27,27,27,31],[27,32,27,39],[28,1,28,6],[28,7,28,12],[28,13,28,18],[28,19,28,26],[28,27,28,31],[28,32,28,39],[29,1,29,6],[29,7,29,12],[29,13,29,18],[29,19,29,26],[29,27,29,31],[29,32,29,39],[30,1,30,6],[30,7,30,12],[30,13,30,18],[30,19,30,26],[30,27,30,31],[30,32,30,39],[31,1,31,6],[31,7,31,12],[31,13,31,18],[31,19,31,26],[31,27,31,31],[31,32,31,39],[33,1,33,12],[33,14,33,39],[34,1,34,12],[34,14,34,21],[34,22,34,25],[34,26,34,33],[34,34,34,39],[35,2,35,12],[35,14,35,21],[35,22,35,25],[35,26,35,33],[35,34,35,39],[36,2,36,12],[36,14,36,21],[36,22,36,25],[36,26,36,33],[36,34,36,39],[37,2,37,12],[37,14,37,21],[37,22,37,25],[37,26,37,33],[37,34,37,39],[38,2,38,12],[38,14,38,21],[38,22,38,25],[38,26,38,33],[38,34,38,39],[39,2,39,12],[39,14,39,21],[39,22,39,25],[39,26,39,33],[39,34,39,39],[40,2,40,12],[40,14,40,21],[40,22,40,25],[40,26,40,33],[40,34,40,39],[41,2,41,12],[41,14,41,21],[41,22,41,25],[41,26,41,33],[41,34,41,39],[42,2,42,12],[42,14,42,21],[42,22,42,25],[42,26,42,33],[42,34,42,38],[43,2,43,12],[43,14,43,21],[43,22,43,25],[43,26,43,33],[43,34,43,39],[44,2,44,12],[44,14,44,21],[44,22,44,25],[44,26,44,33],[44,34,44,39]]}
[]
[null,"Επικύρωση αποθέματος"]
[]
[]
[]
[]
[null,"Όνομα εκτελεστών",{"$nulls":5},"Allan Mattsson"]
[null,"Στοιχεία επικοινωνίας",{"$nulls":5},"4567 Main St, Buffalo, NY 98052"]
[]
[null,"Όνομα αποθετηρίου",{"$nulls":5},"August Bergquist"]
[null,"Οδός και αριθμός",{"$nulls":5},"6789 Main St"]
[null,"Πόλη",{"$nulls":5},"Buffalo",{"$nulls":13},"Κράτος",{"$nulls":5},"NY",{"$nulls":3},"Ταχυδρομικός κώδικας",null,null,98052]
[null,"SSN",{"$nulls":5},"AAA-GG-SSSS",{"$nulls":13},"Επάγγελμα",{"$nulls":5},"Οδοντίατρος"]
[null,"Ημερομηνία γέννησης",{"$nulls":5},"1965-12-08",{"$nulls":13},"Τόπος γέννησης",{"$nulls":5},"NY"]
[null,"Ημερομηνία θανάτου",{"$nulls":5},{"$f":"TODAY()-3","v":"2022-05-13"},{"$nulls":13},"Τόπος θανάτου",{"$nulls":5},"NY"]
[null,"Πρόσθετες πληροφορίες"]
[]
[null,"  Σύζυγός, παιδιά και άλλα εξαρτώμενα άτομα"]
[null,"Όνομα",{"$nulls":5},"Σχέση",{"$nulls":5},"Εξαρτώμενη",null,null,"Ηλικία",null,null,"Διεύθυνση",{"$nulls":7},"Αριθμός τηλεφώνου",{"$nulls":4},"Ηλεκτρονική αλληλογραφία"]
[null,"Mirjam Nilsson",{"$nulls":5},"Προσωπικός αντιπρόσωπος",{"$nulls":5},"Όχι",null,null,30]
[null,"Victoria Lindqvist",{"$nulls":5},"Σύζυγος",{"$nulls":5},"Ναι",null,null,35]
[null,"Alexander Martensson",{"$nulls":5},"Παιδί",{"$nulls":5},"Ναι",null,null,12]
[]
[]
[]
[null,"Επαγγελματίες σύμβουλοι"]
[null,"Τύπος συμβούλου",{"$nulls":5},"Άτομο επαφής",{"$nulls":5},"Εταιρεία",{"$nulls":5},"Διεύθυνση",{"$nulls":7},"Αριθμός τηλεφώνου",{"$nulls":4},"Ηλεκτρονική αλληλογραφία"]
[null,"Λογιστής"]
[null,"Δικηγόρος/Συμβολαιογράφος"]
[null,"Άλλο"]
[]
[]
[]
[null,"  Λίστα ελέγχου διερεύνησης",{"$nulls":12},"  Επικύρωση αποθεμάτων"]
[null,"    Στοιχεία λίστας ελέγχου",{"$nulls":12},"Επικύρωση περιουσιακών στοιχείων",{"$nulls":7},"Αξία (€)",{"$nulls":3},"Επικύρωση υποχρεώσεων",{"$nulls":7},"Αξία (€)"]
[null,"✔","Τελευταία Επιθυμία, Διαθήκη ή οποιοδήποτε άλλο έγγραφο",{"$nulls":11},{"$f":"'Επικύρωση περιουσ. στοιχείων'!B12","v":"Τραπεζικοί λογαριασμοί"},{"$nulls":7},{"$f":"'Επικύρωση περιουσ. στοιχείων'!G20","v":{"v":0,"d":"0.00 €"}},{"$nulls":3},{"$f":"'Επικύρωση παθητικού'!B11","v":"Υποθήκες"},{"$nulls":7},{"$f":"'Επικύρωση παθητικού'!G18","v":{"v":0,"d":"0.00 €"}}]
[null,"✔","Σύμβαση ενοικίασης χρηματοκιβωτίου και κλειδιά",{"$nulls":11},{"$f":"'Επικύρωση περιουσ. στοιχείων'!B22","v":"Προσωπικές επενδύσεις"},{"$nulls":7},{"$f":"'Επικύρωση περιουσ. στοιχείων'!G30","v":{"v":0,"d":"0.00 €"}},{"$nulls":3},{"$f":"'Επικύρωση παθητικού'!B21","v":"Προσωπικά δάνεια και πιστωτικές γραμμές"},{"$nulls":7},{"$f":"'Επικύρωση παθητικού'!G28","v":{"v":0,"d":"0.00 €"}}]
[null,"✖","Κωδικοί πρόσβασης για υπολογιστές και ηλεκτρονικούς λογαριασμούς",{"$nulls":11},{"$f":"'Επικύρωση περιουσ. στοιχείων'!B32","v":"Επιχειρηματικοί τόκοι"},{"$nulls":7},{"$f":"'Επικύρωση περιουσ. στοιχείων'!G40","v":{"v":0,"d":"0.00 €"}},{"$nulls":3},{"$f":"'Επικύρωση παθητικού'!B31","v":"Επιχειρηματικοί τόκοι"},{"$nulls":7},{"$f":"'Επικύρωση παθητικού'!G38","v":{"v":0,"d":"0.00 €"}}]
[null,"✔","Ζωντανές συμβάσεις εμπιστοσύνης",{"$nulls":11},{"$f":"'Επικύρωση περιουσ. στοιχείων'!B42","v":"Ακίνητη περιουσία"},{"$nulls":7},{"$f":"'Επικύρωση περιουσ. στοιχείων'!G50","v":{"v":0,"d":"0.00 €"}},{"$nulls":3},{"$f":"'Επικύρωση παθητικού'!B41","v":"Πιστωτικές κάρτες"},{"$nulls":7},{"$f":"'Επικύρωση παθητικού'!G48","v":{"v":0,"d":"0.00 €"}}]
[null,"✔","Ασφάλειες ζωής, υγείας/ατυχήματος και ασφαλιστηριακά συμβόλαια",{"$nulls":11},{"$f":"'Επικύρωση περιουσ. στοιχείων'!B52","v":"Προγράμματα συνταξιοδότησης"},{"$nulls":7},{"$f":"'Επικύρωση περιουσ. στοιχείων'!G60","v":{"v":0,"d":"0.00 €"}},{"$nulls":3},{"$f":"'Επικύρωση παθητικού'!B51","v":"Άλλες υποχρεώσεις"},{"$nulls":7},{"$f":"'Επικύρωση παθητικού'!G58","v":{"v":0,"d":"0.00 €"}}]
[null,"✔","Οικονομικές δηλώσεις",{"$nulls":11},{"$f":"'Επικύρωση περιουσ. στοιχείων'!B62","v":"Ασφάλεια"},{"$nulls":7},{"$f":"'Επικύρωση περιουσ. στοιχείων'!G70","v":{"v":0,"d":"0.00 €"}}]
[null,"✔","Δηλώσεις φόρου εισοδήματος για τα τελευταία τρία έτη",{"$nulls":11},{"$f":"'Επικύρωση περιουσ. στοιχείων'!B72","v":"Ιδιωτικά δάνεια και στεγαστικά δάνεια"},{"$nulls":7},{"$f":"'Επικύρωση περιουσ. στοιχείων'!G80","v":{"v":0,"d":"0.00 €"}}]
[null,"✔","Πιστοποιητικά γέννησης και θανάτου",{"$nulls":11},{"$f":"'Επικύρωση περιουσ. στοιχείων'!B82","v":"Τόκοι σε άλλα ακίνητα και αξιοπιστίες"},{"$nulls":7},{"$f":"'Επικύρωση περιουσ. στοιχείων'!G90","v":{"v":0,"d":"0.00 €"}}]
[null,"✖","Δηλώσεις εγγράφου, υποθήκης και μίσθωσης",{"$nulls":11},{"$f":"'Επικύρωση περιουσ. στοιχείων'!B92","v":"Προσωπικά εφέ και άλλα περιουσιακά στοιχεία"},{"$nulls":7},{"$f":"'Επικύρωση περιουσ. στοιχείων'!G100","v":{"v":0,"d":"0.00 €"}}]
[null,"☐","Λογαριασμοί και σημειώσεις χωρίς πληρωμή",{"$nulls":11},"Σύνολο περιουσιακών στοιχείων",{"$nulls":7},{"$f":"'Επικύρωση περιουσ. στοιχείων'!G10","v":{"v":0,"d":"0.00 €"}},{"$nulls":3},"Σύνολο υποχρεώσεων",{"$nulls":7},{"$f":"SUM(AI36:AN44)","v":{"v":0,"d":"0.00 €"}}]

{"sheet":"Επικύρωση περιουσ. στοιχείων","index":1,"n_rows":100,"n_cols":8,"rows_kept":100,"merged":[[0,1,0,7],[1,1,5,7],[6,1,7,7],[11,1,11,7],[12,1,12,7],[21,1,21,7],[22,1,22,7],[31,1,31,7],[32,1,32,7],[41,1,41,7],[42,1,42,7],[51,1,51,7],[52,1,52,7],[61,1,61,7],[62,1,62,7],[71,1,71,7],[72,1,72,7],[81,1,81,7],[82,1,82,7],[91,1,91,7],[92,1,92,7]]}
[]
[null,"Επικύρωση περιουσιακών στοιχείων"]
[]
[]
[]
[]
[null,"Χρησιμοποιήστε αυτό το φύλλο εργασίας για να δημιουργήσετε ένα απόθεμα των επικυρωμένων περιουσιακών στοιχείων. Θα πρέπει να προσδιορίσετε την εμπορική αξία κάθε περιουσιακού στοιχείου κατά την ημερομηνία θανάτου. Ελέγξτε όλες τις εγγραφές, συμπεριλαμβανομένων των οικονομικών δηλώσεων, των ασφαλιστηρίων συμβολαίων και των φορολογικών δηλώσεων για να λάβετε τις αξίες της αγοράς. Μπορεί επίσης να χρειαστεί να λάβετε μια εκτίμηση των προσωπικών στοιχείων (π.χ. καλλιτεχνικά έργα, συλλογές, αντίκες κ.λπ.). Φροντίστε να συμπεριλάβετε και τυχόν ξένα περιουσιακά στοιχεία στο απόθεμα, όπως ακίνητα, τίτλους ή επιχειρηματικούς τόκους στο εξωτερικό. Μπορεί να θέλετε να λάβετε επαγγελματική βοήθεια για να αποκτήσετε μια ακριβής αξία αγοράς για ξένα περιουσιακά στοιχεία."]
[]
[]
[null,"Συνολικό ενεργητικό",{"$nulls":4},{"$f":"tblBankAccounts[[#Totals],[Υπόλοιπο ]]+tblPersonalInvestments[[#Totals],[Αξία αγοράς]]+tblBusinessInterests[[#Totals],[Αξία ]]+tblRealEstate[[#Totals],[Αγοραία τιμή]]+tblPensionPlans[[#Totals],[Αξία ]]+tblInsurance[[#Totals],[Αξία μετρητών ]]+tblMortgages[[#Totals],[Οφειλόμενο υπόλοιπο ]]+tblTrusts[[#Totals],[Ποσό διανομής]]+tblOtherAssets[[#Totals],[Αξία ]]","v":{"v":0,"d":"0.00 €"}}]
[]
[null,"Τραπεζικοί λογαριασμοί"]
[null,"Αναφέρετε όλους τους τραπεζικούς λογαριασμούς, συμπεριλαμβανομένων μετρητών, ταξιδιωτικών επιταγών, παραγγελίες χρημάτων και λογαριασμών σε εμπορικές τράπεζες, ταμιευτήρια, πιστωτικές ενώσεις κ.λπ. Συμπεριλάβετε όλα τα ονόματα που αναφέρονται στον λογαριασμό και την πραγματική αξία σε μετρητά που αναφέρεται στο ακριβές ποσό του δολαρίου και της αλλαγής κατά τη στιγμή του θανάτου."]
[null,"Οικονομικό ίδρυμα ","Διεύθυνση","Τηλέφωνο","Αριθμός λογαριασμού","Τύπος λογαριασμού","Υπόλοιπο ","Σημειώσεις"]
[]
[]
[]
[]
[]
[null,"Σύνολο",{"$nulls":4},{"$f":"SUBTOTAL(109,tblBankAccounts[[Υπόλοιπο ]])","v":{"v":0,"d":"0.00 €"}}]
[]
[null,"Προσωπικές επενδύσεις"]
[null,"Καταχωρήστε λογαριασμούς μετρητών, λογαριασμούς περιθωρίων, λογαριασμούς ταμιευτηρίου χωρίς φόρους, καταχωρημένα προγράμματα απόσυρσης (RRSP), καταχωρημένα κεφάλαια εισοδήματος συνταξιοδότησης (RRIF), κλειδωμένα RRIF, κλειδωμένα RRSP, κεφάλαια εισοδήματος ζωής, κεφάλαια εισοδημάτων συνταξιοδότησης, εγγεγραμμένα προγράμματα εξοικονόμησης εκπαίδευσης, προσόδους κ.λπ."]
[null,"Εταιρεία","Διεύθυνση","Τηλέφωνο","Αριθμός λογαριασμού","Δικαιούχος","Αξία αγοράς","Σημειώσεις"]
[]
[]
[]
[]
[]
[null,"Σύνολο",{"$nulls":4},{"$f":"SUBTOTAL(109,tblPersonalInvestments[Αξία αγοράς])","v":{"v":0,"d":"0.00 €"}}]
[]
[null,"Επιχειρηματικοί τόκοι"]
[null,"Αναφέρετε όλους του επιχειρηματικούς τόκους, συμπεριλαμβανομένων των ατομικών επιχειρήσεων, των επαγγελματικών πρακτικών, των εταιρειών, των συνεργασιών, των εταιρειών περιορισμένης ευθύνης και των συνεργασιών, των κοινών επιχειρήσεων και άλλων μη εισηγμένων επιχειρηματικών οντοτήτων. "]
[null,"Όνομα επιχείρησης","Διεύθυνση","Τηλέφωνο","Επαφή","Τύπος","Αξία ","Σημειώσεις"]
[]
[]
[]
[]
[]
[null,"Σύνολο",{"$nulls":4},{"$f":"SUBTOTAL(109,tblBusinessInterests[[Αξία ]])","v":{"v":0,"d":"0.00 €"}}]
[]
[null,"Ακίνητη περιουσία"]
[null,"Αναφέρετε οποιοδήποτε ακίνητο στο οποίο ο αποβιώσας ή/και ο επιζών σύζυγος/σύντροφος του αποβιώσαντος είναι ιδιοκτήτης, συνιδιοκτήτης ή έχουν συμφέρον με οποιονδήποτε τρόπο, συμπεριλαμβανομένης της ιδιοκτησίας που αγοράστηκε για ψυχαγωγικές εξελίξεις και χρονομερίσματα. Λήψη αντιγράφων των εγγράφων. Καταχωρήστε μια περιγραφή της ακίνητης περιουσίας με τη φυσική διεύθυνσή της. Αναφέρετε την εύλογη αγοραία αξία του ακινήτου, με βάση την πιο πρόσφατη εκτίμηση του ελεγκτή φόρου."]
[null,"Διεύθυνση","Τίτλος που κατέχεται από","Τηλέφωνο","Επαφή","Τιμή αγοράς","Αγοραία τιμή","Σημειώσεις"]
[]
[]
[]
[]
[]
[null,"Σύνολο",{"$nulls":3},{"$f":"SUBTOTAL(109,tblRealEstate[Τιμή αγοράς])","v":{"v":0,"d":"0.00 €"}},{"$f":"SUBTOTAL(109,tblRealEstate[Αγοραία τιμή])","v":{"v":0,"d":"0.00 €"}}]
[]
[null,"Προγράμματα συνταξιοδότησης"]
[null,"Αναφέρετε καθορισμένα πλεονεκτήματα, χρηματικές αγορές ή καθορισμένες εισφορές, DPSP ή RRSP ομάδας κ.λπ."]
[null,"Εταιρεία","Τηλέφωνο","Τύπος σχεδίου","Δικαιούχος","Ηλεκτρονική αλληλογραφία","Αξία ","Σημειώσεις"]
[]
[]
[]
[]
[]
[null,"Σύνολο",{"$nulls":4},{"$f":"SUBTOTAL(109,tblPensionPlans[[Αξία ]])","v":{"v":0,"d":"0.00 €"}}]
[]
[null,"Ασφάλεια"]
[null,"Συμπεριλάβετε αξιοπιστίες διαβίωσης, ασφαλιστήρια συμβόλαια ζωής με επώνυμους δικαιούχους και επενδυτικούς λογαριασμούς που μεταφέρθηκαν σε περίπτωση θανάτου, ως μη κατοχυρωμένα περιουσιακά στοιχεία. Εάν το δικαστήριο ρωτήσει σχετικά με αυτά τα περιουσιακά στοιχεία, ο εκτελεστής μπορεί εύκολα να παραπέμψει στον κατάλογο των μη καταγεγραμμένων περιουσιακών στοιχείων και να εξηγήσει την απουσία τους από τον κατάλογο των κληρονόμων."]
[null,"Εκδότης","Αριθμός πολιτικής","Τηλέφωνο","Δικαιούχος","Ονομαστική αξία ","Αξία μετρητών ","Σημειώσεις"]
[]
[]
[]
[]
[]
[null,"Σύνολο",{"$nulls":3},{"$f":"SUBTOTAL(109,tblInsurance[[Ονομαστική αξία ]])","v":{"v":0,"d":"0.00 €"}},{"$f":"SUBTOTAL(109,tblInsurance[[Αξία μετρητών ]])","v":{"v":0,"d":"0.00 €"}}]
[]
[null,"Ιδιωτικά δάνεια και στεγαστικά δάνεια"]
[null,"Αναφέρετε ιδιωτικά δάνεια και στεγαστικά δάνεια όπου ο αποθανών ήταν ο δανειστής."]
[null,"Όνομα δανειολήπτη","Διεύθυνση","Τηλέφωνο","Τύπος","Αρχικό ποσό","Οφειλόμενο υπόλοιπο ","Σημειώσεις"]
[]
[]
[]
[]
[]
[null,"Σύνολο",{"$nulls":3},{"$f":"SUBTOTAL(109,tblMortgages[Αρχικό ποσό])","v":{"v":0,"d":"0.00 €"}},{"$f":"SUBTOTAL(109,tblMortgages[[Οφειλόμενο υπόλοιπο ]])","v":{"v":0,"d":"0.00 €"}}]
[]
[null,"Τόκοι σε άλλα ακίνητα και αξιοπιστίες"]
[null,"Αναφέρετε περιουσιακά στοιχεία που είναι καταχωρισμένα στο όνομα του αποθανόντος ατόμου που διατηρούνται για λογαριασμό τρίτων (π.χ. περιουσιακά στοιχεία που κατέχει ο αποθανών ως διαχειριστής ή περιουσιακά στοιχεία που κατέχονται με πληρεξούσιο)."]
[null,"Όνομα της περιουσίας/αξιοπιστίας","Όνομα εκτελεστή/αξιόπιστου","Τηλέφωνο","Διεύθυνση","Ηλεκτρονική αλληλογραφία","Ποσό διανομής","Σημειώσεις"]
[]
[]
[]
[]
[]
[null,"Σύνολο",{"$nulls":4},{"$f":"SUBTOTAL(109,tblTrusts[Ποσό διανομής])","v":{"v":0,"d":"0.00 €"}}]
[]
[null,"Προσωπικά εφέ και άλλα περιουσιακά στοιχεία"]
[null,"Αναφέρετε όλα τα προσωπικά στοιχεία για παράδειγμα. αυτοκίνητα, κοσμήματα, τέχνη, αντίκες, έπιπλα. Συμπεριλάβετε στοιχεία που μπορεί να έχουν διατηρηθεί σε μια θυρίδα ασφαλείας ή σε θυρίδα."]
[null,"Περιγραφή στοιχείου","Τοποθεσία","Τηλέφωνο","Επαφή","Δικαιούχος","Αξία ","Σημειώσεις"]
[]
[]
[]
[]
[]
[null,"Σύνολο",{"$nulls":4},{"$f":"SUBTOTAL(109,tblOtherAssets[[Αξία ]])","v":{"v":0,"d":"0.00 €"}}]

{"sheet":"Επικύρωση παθητικού","index":2,"n_rows":58,"n_cols":8,"rows_kept":58,"merged":[[0,1,0,7],[1,1,5,7],[6,1,6,7],[10,1,10,7],[20,1,20,7],[30,1,30,7],[40,1,40,7],[50,1,50,7]]}
[]
[null,"Επικύρωση υποχρεώσεων"]
[]
[]
[]
[]
[null,"Χρησιμοποιήστε αυτό το φύλλο εργασίας για να καταγράψετε τις λεπτομέρειες των υποχρεώσεων της περιουσίας, τόσο στο εσωτερικό όσο και στο εξωτερικό. Θα απαιτήσετε μια αποτίμηση κάθε υποχρέωσης κατά την ημερομηνία θανάτου."]
[]
[null,"Συνολικό ενεργητικό",{"$nulls":4},{"$f":"SUM(G18,G28,G38,G48,G58)","v":{"v":0,"d":"0.00 €"}}]
[]
[null,"Υποθήκες"]
[null,"Οικονομικό ίδρυμα ","Διεύθυνση","Τηλέφωνο","Τίτλος που διατηρείται από","Αριθμός λογαριασμού","Υπόλοιπο ","Σημειώσεις"]
[]
[]
[]
[]
[]
[null,"Σύνολο",{"$nulls":4},{"$f":"SUBTOTAL(109,tblBankAccounts2[[Υπόλοιπο ]])","v":{"v":0,"d":"0.00 €"}}]
[]
[]
[null,"Προσωπικά δάνεια και πιστωτικές γραμμές"]
[null,"Οικονομικό ίδρυμα","Διεύθυνση","Τηλέφωνο"," Αριθμός λογαριασμού","Τύπος","Υπόλοιπο ","Σημειώσεις"]
[]
[]
[]
[]
[]
[null,"Σύνολο",{"$nulls":4},{"$f":"SUBTOTAL(109,tblPersonalInvestments3[[Υπόλοιπο ]])","v":{"v":0,"d":"0.00 €"}}]
[]
[]
[null,"Επιχειρηματικοί τόκοι"]
[null,"Όνομα επιχείρησης","Διεύθυνση"," Τηλέφωνο"," Επαφή","Τύπος","Αξία ","Σημειώσεις"]
[]
[]
[]
[]
[]
[null,"Σύνολο",{"$nulls":4},{"$f":"SUBTOTAL(109,tblBusinessInterests4[[Αξία ]])","v":{"v":0,"d":"0.00 €"}}]
[]
[]
[null,"Πιστωτικές κάρτες"]
[null,"Εταιρεία πιστωτικών καρτών","Διεύθυνση εταιρείας","Τηλέφωνο","Αριθμός κάρτας","Ημερομηνία λήξης ","Υπόλοιπο ","Σημειώσεις"]
[]
[]
[]
[]
[]
[null,"Σύνολο",{"$nulls":4},{"$f":"SUBTOTAL(109,tblRealEstate5[[Υπόλοιπο ]])","v":{"v":0,"d":"0.00 €"}}]
[]
[]
[null,"Άλλες υποχρεώσεις"]
[null,"Περιγραφή στοιχείου","Τοποθεσία","Τηλέφωνο","Επαφή","Δικαιούχος","Αξία ","Σημειώσεις"]
[]
[]
[]
[]
[]
[null,"Σύνολο",{"$nulls":4},{"$f":"SUBTOTAL(109,tblPensionPlans6[[Αξία ]])","v":{"v":0,"d":"0.00 €"}}]